[Event "*** Titled Tuesday Blitz"]
[Site "Chess.com"]
[Date "2021.04.20"]
[Round "2"]
[White "FMJoseHerrera"]
[Black "fabianvivasz"]
[Result "0-1"]
[WhiteElo "2638"]
[BlackElo "2341"]
[TimeControl "180+1"]
[EndTime "10:17:23 PDT"]
[Termination "fabianvivasz won by resignation"]

1. Nf3 {[%clk 0:03:00.9]} 1... c5 {[%clk 0:02:57.5]} 2. g3 {[%clk 0:03:00.3]}
2... Nf6 {[%clk 0:02:51.7]} 3. Bg2 {[%clk 0:02:59.7]} 3... g6 {[%clk 0:02:52.3]}
4. d3 {[%clk 0:02:58.4]} 4... Bg7 {[%clk 0:02:52.5]} 5. Nc3 {[%clk 0:02:58.7]}
5... d5 {[%clk 0:02:50.4]} 6. h4 {[%clk 0:02:57.8]} 6... d4 {[%clk 0:02:44.6]}
7. Nb1 {[%clk 0:02:52.5]} 7... h6 {[%clk 0:02:34.3]} 8. O-O {[%clk 0:02:49.5]}
8... Nc6 {[%clk 0:02:33.1]} 9. e4 {[%clk 0:02:48.9]} 9... dxe3 {[%clk
0:02:18.8]} 10. fxe3 {[%clk 0:02:47.6]} 10... Qc7 {[%clk 0:02:09.6]} 11. Qe1
{[%clk 0:02:45.9]} 11... Nh5 {[%clk 0:01:51.8]} 12. Kh2 {[%clk 0:02:26.9]} 12...
Ne5 {[%clk 0:01:51.9]} 13. Nc3 {[%clk 0:02:25]} 13... Ng4+ {[%clk 0:01:00.3]}
14. Kg1 {[%clk 0:02:20.3]} 14... Nxg3 {[%clk 0:01:00.4]} 15. Nb5 {[%clk
0:02:16.5]} 15... Qb8 {[%clk 0:01:00.3]} 16. Rf2 {[%clk 0:01:54.1]} 16... Bd7
{[%clk 0:00:54.1]} 17. Nc3 {[%clk 0:01:50.7]} 17... Bc6 {[%clk 0:00:38.9]} 18.
e4 {[%clk 0:01:49.5]} 18... Nxf2 {[%clk 0:00:23.7]} 19. Qxf2 {[%clk 0:01:50.4]}
19... Nh5 {[%clk 0:00:23.6]} 20. Qxc5 {[%clk 0:01:48.5]} 20... Qg3 {[%clk
0:00:19.7]} 21. Be3 {[%clk 0:01:42.3]} 21... Nf4 {[%clk 0:00:15.8]} 22. Bxf4
{[%clk 0:01:42.5]} 22... Qxf4 {[%clk 0:00:16.7]} 23. Rf1 {[%clk 0:01:42.6]}
23... O-O-O {[%clk 0:00:12.6]} 24. Qxe7 {[%clk 0:01:39.1]} 24... Rhe8 {[%clk
0:00:11.1]} 25. Qa3 {[%clk 0:01:35]} 25... Qe3+ {[%clk 0:00:05.3]} 26. Kh1
{[%clk 0:01:33.9]} 26... f5 {[%clk 0:00:05.8]} 27. Re1 {[%clk 0:01:26.1]} 27...
Qb6 {[%clk 0:00:05]} 28. Nd2 {[%clk 0:01:23]} 28... f4 {[%clk 0:00:02.9]} 29.
Nc4 {[%clk 0:01:21.8]} 29... Qf2 {[%clk 0:00:02.6]} 30. Re2 {[%clk 0:01:09.9]}
30... Qxh4+ {[%clk 0:00:02.7]} 31. Kg1 {[%clk 0:01:10.4]} 31... Bd4+ {[%clk
0:00:02.7]} 32. Kf1 {[%clk 0:01:10.9]} 32... f3 {[%clk 0:00:02.8]} 33. Bxf3
{[%clk 0:01:07.7]} 33... Qh3+ {[%clk 0:00:02.9]} 34. Bg2 {[%clk 0:01:06.4]}
34... Rf8+ {[%clk 0:00:02.8]} 35. Ke1 {[%clk 0:01:07]} 35... Qg3+ {[%clk
0:00:03.2]} 36. Kd1 {[%clk 0:01:05.4]} 36... Rf2 {[%clk 0:00:03]} 37. Na5 {[%clk
0:00:44.8]} 37... Rxg2 {[%clk 0:00:02]} 38. Nxc6 {[%clk 0:00:44.6]} 38... Rg1+
{[%clk 0:00:02.4]} 39. Kd2 {[%clk 0:00:24.8]} 39... Qf4+ {[%clk 0:00:02.6]} 0-1

[Event "*** Titled Tuesday Blitz"]
[Site "Chess.com"]
[Date "2021.04.20"]
[Round "2"]
[White "JoachimMouhamad"]
[Black "Irishchessman16"]
[Result "0-1"]
[WhiteElo "2451"]
[BlackElo "2286"]
[TimeControl "180+1"]
[EndTime "10:17:23 PDT"]
[Termination "Irishchessman16 won by resignation"]

1. e4 {[%clk 0:03:00.9]} 1... c5 {[%clk 0:02:58]} 2. Nf3 {[%clk 0:02:59.4]} 2...
Nc6 {[%clk 0:02:57.6]} 3. d4 {[%clk 0:02:59.8]} 3... cxd4 {[%clk 0:02:58.5]} 4.
Nxd4 {[%clk 0:03:00.5]} 4... Nf6 {[%clk 0:02:58.8]} 5. Nc3 {[%clk 0:03:00.6]}
5... e5 {[%clk 0:02:58.3]} 6. Ndb5 {[%clk 0:03:00.8]} 6... d6 {[%clk 0:02:58.9]}
7. Bg5 {[%clk 0:03:00.1]} 7... a6 {[%clk 0:02:59.5]} 8. Na3 {[%clk 0:03:00.3]}
8... b5 {[%clk 0:03:00.2]} 9. Nd5 {[%clk 0:03:00.9]} 9... Be7 {[%clk 0:03:00.7]}
10. Bxf6 {[%clk 0:03:01.6]} 10... Bxf6 {[%clk 0:03:01.4]} 11. c3 {[%clk
0:03:02.2]} 11... Bg5 {[%clk 0:03:00.1]} 12. Nc2 {[%clk 0:03:01.7]} 12... Rb8
{[%clk 0:02:59.9]} 13. Be2 {[%clk 0:03:00.7]} 13... O-O {[%clk 0:02:58.2]} 14.
O-O {[%clk 0:03:00.7]} 14... Be6 {[%clk 0:02:57.7]} 15. Qd3 {[%clk 0:02:59.9]}
15... a5 {[%clk 0:02:43]} 16. Rad1 {[%clk 0:02:55.5]} 16... Qd7 {[%clk
0:02:32.5]} 17. Qg3 {[%clk 0:02:53]} 17... Bd8 {[%clk 0:02:13.4]} 18. Nce3
{[%clk 0:02:47.7]} 18... g6 {[%clk 0:02:08.3]} 19. Rd2 {[%clk 0:02:45.1]} 19...
Kh8 {[%clk 0:02:04]} 20. f4 {[%clk 0:02:15]} 20... exf4 {[%clk 0:01:52.1]} 21.
Rxf4 {[%clk 0:02:06.2]} 21... Qa7 {[%clk 0:01:35]} 22. Kh1 {[%clk 0:01:58.3]}
22... b4 {[%clk 0:01:31.4]} 23. c4 {[%clk 0:01:45.2]} 23... Ne5 {[%clk
0:00:50.3]} 24. Bf1 {[%clk 0:01:26.4]} 24... b3 {[%clk 0:00:34.7]} 25. a3 {[%clk
0:01:24.7]} 25... Rc8 {[%clk 0:00:32.3]} 26. Rdf2 {[%clk 0:01:12.7]} 26... Qd4
{[%clk 0:00:27.1]} 27. h4 {[%clk 0:00:54]} 27... h5 {[%clk 0:00:18.5]} 28. Kh2
{[%clk 0:00:39.3]} 28... Kh7 {[%clk 0:00:17.4]} 29. Rf6 {[%clk 0:00:38.3]} 29...
Qxe4 {[%clk 0:00:13.9]} 30. R6f4 {[%clk 0:00:24.1]} 30... Qb1 {[%clk 0:00:14]}
31. Nf6+ {[%clk 0:00:21.8]} 31... Bxf6 {[%clk 0:00:14]} 32. Rxf6 {[%clk
0:00:22.7]} 32... Qe4 {[%clk 0:00:09.9]} 33. R6f4 {[%clk 0:00:21.5]} 33... Qb1
{[%clk 0:00:09.9]} 34. Bd3 {[%clk 0:00:21.1]} 34... Nxd3 {[%clk 0:00:09.2]} 35.
Rf1 {[%clk 0:00:13.1]} 35... Qxb2 {[%clk 0:00:09.4]} 36. R4f3 {[%clk 0:00:11.7]}
36... Qe5 {[%clk 0:00:08.3]} 0-1

[Event "*** Titled Tuesday Blitz"]
[Site "Chess.com"]
[Date "2021.04.20"]
[Round "2"]
[White "Varinius"]
[Black "Beca95"]
[Result "0-1"]
[WhiteElo "2404"]
[BlackElo "2833"]
[TimeControl "180+1"]
[EndTime "10:17:24 PDT"]
[Termination "Beca95 won by resignation"]

1. d4 {[%clk 0:02:55.3]} 1... d5 {[%clk 0:02:59]} 2. Nf3 {[%clk 0:02:52.5]} 2...
Nf6 {[%clk 0:02:58.6]} 3. c4 {[%clk 0:02:52.3]} 3... c6 {[%clk 0:02:58.6]} 4.
Nc3 {[%clk 0:02:51.2]} 4... dxc4 {[%clk 0:02:54.6]} 5. g3 {[%clk 0:02:46.8]}
5... Nbd7 {[%clk 0:02:40.5]} 6. Bg2 {[%clk 0:02:46.1]} 6... g6 {[%clk 0:02:27]}
7. b3 {[%clk 0:02:36.6]} 7... cxb3 {[%clk 0:02:26.1]} 8. Qxb3 {[%clk 0:02:37.5]}
8... Bg7 {[%clk 0:02:26.4]} 9. O-O {[%clk 0:02:36.6]} 9... O-O {[%clk
0:02:26.5]} 10. Rd1 {[%clk 0:02:29.7]} 10... Nb6 {[%clk 0:02:26.2]} 11. Ne5
{[%clk 0:02:22.2]} 11... Be6 {[%clk 0:02:25.3]} 12. Qa3 {[%clk 0:02:10.9]} 12...
Re8 {[%clk 0:02:21.9]} 13. Rb1 {[%clk 0:02:10.1]} 13... Qc8 {[%clk 0:02:21.3]}
14. Na4 {[%clk 0:01:54.9]} 14... Nc4 {[%clk 0:02:13.6]} 15. Nxc4 {[%clk
0:01:48.3]} 15... Bxc4 {[%clk 0:02:14.5]} 16. e3 {[%clk 0:01:45.1]} 16... Bd5
{[%clk 0:01:55.3]} 17. f3 {[%clk 0:01:34.4]} 17... b6 {[%clk 0:01:47.4]} 18. e4
{[%clk 0:01:30.6]} 18... Bc4 {[%clk 0:01:47.1]} 19. Nb2 {[%clk 0:01:25.9]} 19...
Be2 {[%clk 0:01:44.4]} 20. Re1 {[%clk 0:01:22]} 20... Bb5 {[%clk 0:01:40.9]} 21.
Be3 {[%clk 0:01:20.9]} 21... Qb7 {[%clk 0:01:38.2]} 22. Rbc1 {[%clk 0:01:20.2]}
22... h5 {[%clk 0:01:33.6]} 23. Nc4 {[%clk 0:01:02.6]} 23... Rac8 {[%clk
0:01:23.6]} 24. Qb3 {[%clk 0:01:01.9]} 24... Bxc4 {[%clk 0:01:18.6]} 25. Qxc4
{[%clk 0:01:00.9]} 25... e6 {[%clk 0:01:18.8]} 26. Re2 {[%clk 0:00:50.1]} 26...
Red8 {[%clk 0:01:18.4]} 27. Rec2 {[%clk 0:00:49.6]} 27... Qd7 {[%clk 0:01:18.2]}
28. h3 {[%clk 0:00:42.9]} 28... Kh7 {[%clk 0:01:17.2]} 29. f4 {[%clk 0:00:42.8]}
29... Bf8 {[%clk 0:01:07.5]} 30. Bf2 {[%clk 0:00:41.5]} 30... Ba3 {[%clk
0:01:05.8]} 31. Rb1 {[%clk 0:00:39.8]} 31... Be7 {[%clk 0:01:05.6]} 32. Rb3
{[%clk 0:00:39.3]} 32... c5 {[%clk 0:01:05.5]} 33. d5 {[%clk 0:00:34.1]} 33...
exd5 {[%clk 0:01:04.5]} 34. exd5 {[%clk 0:00:35]} 34... Ne8 {[%clk 0:01:02]} 35.
Re3 {[%clk 0:00:26.2]} 35... Bf6 {[%clk 0:01:01.4]} 36. Rce2 {[%clk 0:00:24]}
36... Nd6 {[%clk 0:01:00.9]} 37. Qc2 {[%clk 0:00:23.7]} 37... Re8 {[%clk
0:01:00.8]} 38. Bf3 {[%clk 0:00:20.4]} 38... Qxh3 {[%clk 0:00:51.3]} 39. Bg2
{[%clk 0:00:19.2]} 39... Qd7 {[%clk 0:00:50.3]} 40. Bf3 {[%clk 0:00:16.2]} 40...
Kg7 {[%clk 0:00:49.8]} 41. Kg2 {[%clk 0:00:16.2]} 41... Rxe3 {[%clk 0:00:48]}
42. Rxe3 {[%clk 0:00:15.8]} 42... Re8 {[%clk 0:00:48]} 43. Qe2 {[%clk
0:00:15.8]} 43... Rxe3 {[%clk 0:00:46.9]} 44. Qxe3 {[%clk 0:00:16.7]} 44... Qa4
{[%clk 0:00:45]} 45. g4 {[%clk 0:00:13.6]} 45... hxg4 {[%clk 0:00:44.1]} 46.
Bxg4 {[%clk 0:00:14.5]} 46... Qxa2 {[%clk 0:00:44]} 47. f5 {[%clk 0:00:10.4]}
47... Bd4 {[%clk 0:00:42]} 48. Qf3 {[%clk 0:00:07.9]} 48... Qxf2+ {[%clk
0:00:41]} 0-1

[Event "*** Titled Tuesday Blitz"]
[Site "Chess.com"]
[Date "2021.04.20"]
[Round "2"]
[White "Harry_Rakkel"]
[Black "FredyMatsuura"]
[Result "1-0"]
[WhiteElo "2601"]
[BlackElo "2333"]
[TimeControl "180+1"]
[EndTime "10:17:24 PDT"]
[Termination "Harry_Rakkel won by resignation"]

1. Nf3 {[%clk 0:03:00.9]} 1... Nf6 {[%clk 0:02:59.5]} 2. c4 {[%clk 0:03:00.2]}
2... e6 {[%clk 0:02:59.2]} 3. g3 {[%clk 0:02:59.5]} 3... a6 {[%clk 0:02:58.9]}
4. Bg2 {[%clk 0:02:58.9]} 4... b5 {[%clk 0:02:58.9]} 5. d3 {[%clk 0:02:55.3]}
5... Bb7 {[%clk 0:02:58.3]} 6. O-O {[%clk 0:02:54.7]} 6... c5 {[%clk 0:02:58.2]}
7. Nbd2 {[%clk 0:02:53.3]} 7... Be7 {[%clk 0:02:56.1]} 8. b3 {[%clk 0:02:52.7]}
8... O-O {[%clk 0:02:55.4]} 9. Bb2 {[%clk 0:02:52.3]} 9... d6 {[%clk 0:02:54.8]}
10. e4 {[%clk 0:02:51.1]} 10... Nbd7 {[%clk 0:02:54.5]} 11. h3 {[%clk
0:02:49.3]} 11... Qb6 {[%clk 0:02:53.5]} 12. Qe2 {[%clk 0:02:48.1]} 12... Rad8
{[%clk 0:02:35.6]} 13. Nh2 {[%clk 0:02:37.3]} 13... bxc4 {[%clk 0:02:24.1]} 14.
Nxc4 {[%clk 0:02:24.6]} 14... Qc7 {[%clk 0:02:21.5]} 15. Rac1 {[%clk 0:02:17.8]}
15... Nb6 {[%clk 0:02:12.8]} 16. Ne3 {[%clk 0:02:13.1]} 16... Nfd7 {[%clk
0:02:08.3]} 17. f4 {[%clk 0:02:10.6]} 17... Bf6 {[%clk 0:02:00.8]} 18. d4 {[%clk
0:02:08.5]} 18... Qb8 {[%clk 0:01:55.2]} 19. e5 {[%clk 0:02:04.1]} 19... Be7
{[%clk 0:01:39.1]} 20. exd6 {[%clk 0:01:47.1]} 20... Bxd6 {[%clk 0:01:36.6]} 21.
Nhg4 {[%clk 0:01:46.6]} 21... Bxg2 {[%clk 0:01:33.1]} 22. Qxg2 {[%clk
0:01:46.3]} 22... Qa8 {[%clk 0:01:28.3]} 23. Qc2 {[%clk 0:01:30.4]} 23... cxd4
{[%clk 0:01:19.8]} 24. Bxd4 {[%clk 0:01:29.4]} 24... Rc8 {[%clk 0:01:19.5]} 25.
Qb2 {[%clk 0:01:29.4]} 25... f6 {[%clk 0:01:18.6]} 26. Rcd1 {[%clk 0:01:27.7]}
26... Qc6 {[%clk 0:01:09.2]} 27. Rf2 {[%clk 0:01:17.1]} 27... Bc5 {[%clk
0:01:07.4]} 28. Rc2 {[%clk 0:01:14.4]} 28... Qb5 {[%clk 0:01:06.7]} 29. Bxc5
{[%clk 0:00:55.3]} 29... Rxc5 {[%clk 0:01:01.5]} 30. Rcd2 {[%clk 0:00:51.7]}
30... Rc7 {[%clk 0:00:55.6]} 31. Nf2 {[%clk 0:00:45.7]} 31... Qc6 {[%clk
0:00:48.7]} 32. Nf1 {[%clk 0:00:37.9]} 32... Qf3 {[%clk 0:00:44.2]} 33. Qa3
{[%clk 0:00:31.1]} 33... Nd5 {[%clk 0:00:39.7]} 34. Qd6 {[%clk 0:00:27]} 34...
Nc3 {[%clk 0:00:12.1]} 35. Qxc7 {[%clk 0:00:21.3]} 35... Nxd1 {[%clk 0:00:12.4]}
36. Rxd1 {[%clk 0:00:21.4]} 36... Nb8 {[%clk 0:00:10.8]} 37. Qe7 {[%clk
0:00:19.2]} 37... e5 {[%clk 0:00:09.6]} 38. Rd8 {[%clk 0:00:17.6]} 1-0

[Event "*** Titled Tuesday Blitz"]
[Site "Chess.com"]
[Date "2021.04.20"]
[Round "2"]
[White "szachuspl"]
[Black "Jumbo"]
[Result "1-0"]
[WhiteElo "2556"]
[BlackElo "2804"]
[TimeControl "180+1"]
[EndTime "10:17:25 PDT"]
[Termination "szachuspl won by checkmate"]

1. d4 {[%clk 0:03:00.9]} 1... Nf6 {[%clk 0:02:58.4]} 2. c4 {[%clk 0:02:58.9]}
2... e6 {[%clk 0:02:58.8]} 3. Nf3 {[%clk 0:02:59]} 3... Bb4+ {[%clk 0:02:58.6]}
4. Nbd2 {[%clk 0:02:57.7]} 4... O-O {[%clk 0:02:57.3]} 5. a3 {[%clk 0:02:57.9]}
5... Be7 {[%clk 0:02:57.5]} 6. e4 {[%clk 0:02:58.3]} 6... d6 {[%clk 0:02:58]} 7.
Bd3 {[%clk 0:02:56.4]} 7... e5 {[%clk 0:02:58.2]} 8. O-O {[%clk 0:02:55.3]} 8...
Nfd7 {[%clk 0:02:53.8]} 9. b4 {[%clk 0:02:50.5]} 9... exd4 {[%clk 0:02:53.4]}
10. Nxd4 {[%clk 0:02:50.1]} 10... Bf6 {[%clk 0:02:53.8]} 11. N2b3 {[%clk
0:02:41.5]} 11... c5 {[%clk 0:02:53.9]} 12. Nb5 {[%clk 0:02:36.8]} 12... Bxa1
{[%clk 0:02:51.5]} 13. Nxa1 {[%clk 0:02:37.7]} 13... Nc6 {[%clk 0:02:34.6]} 14.
Nxd6 {[%clk 0:02:26.2]} 14... cxb4 {[%clk 0:02:32.6]} 15. Nb3 {[%clk 0:02:22]}
15... a5 {[%clk 0:02:22.9]} 16. axb4 {[%clk 0:02:14.8]} 16... Nxb4 {[%clk
0:02:19.8]} 17. Bb1 {[%clk 0:02:14.6]} 17... a4 {[%clk 0:02:10.9]} 18. Ba3
{[%clk 0:02:02.3]} 18... Qb6 {[%clk 0:01:29.6]} 19. Nc1 {[%clk 0:01:40.6]} 19...
Nc5 {[%clk 0:01:15.9]} 20. Nf5 {[%clk 0:01:21.8]} 20... Bxf5 {[%clk 0:01:14.8]}
21. exf5 {[%clk 0:01:21.9]} 21... Rad8 {[%clk 0:01:14.8]} 22. Qg4 {[%clk
0:01:18.3]} 22... f6 {[%clk 0:01:14]} 23. Ne2 {[%clk 0:01:14.5]} 23... Rfe8
{[%clk 0:00:51.7]} 24. Ng3 {[%clk 0:01:14.4]} 24... Nbd3 {[%clk 0:00:41.9]} 25.
Nh5 {[%clk 0:01:11.8]} 25... Rd7 {[%clk 0:00:42.2]} 26. h4 {[%clk 0:00:55.1]}
26... Kh8 {[%clk 0:00:38.3]} 27. Bc2 {[%clk 0:00:52.4]} 27... Ne5 {[%clk
0:00:19.3]} 28. Qg3 {[%clk 0:00:43.9]} 28... Nxc4 {[%clk 0:00:16]} 29. Rb1
{[%clk 0:00:31.7]} 29... Nb3 {[%clk 0:00:13.3]} 30. Bc1 {[%clk 0:00:23.2]} 30...
Re1+ {[%clk 0:00:11.3]} 31. Kh2 {[%clk 0:00:23.1]} 31... Qc6 {[%clk 0:00:06.8]}
32. Bh6 {[%clk 0:00:16.6]} 32... gxh6 {[%clk 0:00:05.5]} 33. Rxe1 {[%clk
0:00:16.2]} 33... Qc7 {[%clk 0:00:01.6]} 34. Re8# {[%clk 0:00:15.7]} 1-0

[Event "*** Titled Tuesday Blitz"]
[Site "Chess.com"]
[Date "2021.04.20"]
[Round "2"]
[White "Leo_C"]
[Black "BashirliSaadat"]
[Result "1-0"]
[WhiteElo "2424"]
[BlackElo "2192"]
[TimeControl "180+1"]
[EndTime "10:17:28 PDT"]
[Termination "Leo_C won on time"]

1. d4 {[%clk 0:03:00.8]} 1... d5 {[%clk 0:02:59.4]} 2. c4 {[%clk 0:02:50.8]}
2... e6 {[%clk 0:02:58.6]} 3. Nc3 {[%clk 0:02:50.3]} 3... c6 {[%clk 0:02:58.8]}
4. e4 {[%clk 0:02:49.5]} 4... dxe4 {[%clk 0:02:57.8]} 5. Nxe4 {[%clk 0:02:50.4]}
5... Nf6 {[%clk 0:02:57.3]} 6. Nc3 {[%clk 0:02:44.2]} 6... Bb4 {[%clk 0:02:56]}
7. Nf3 {[%clk 0:02:37.1]} 7... O-O {[%clk 0:02:54.6]} 8. a3 {[%clk 0:02:33.6]}
8... Bxc3+ {[%clk 0:02:51.8]} 9. bxc3 {[%clk 0:02:34.5]} 9... Bd7 {[%clk
0:02:49.4]} 10. Bd3 {[%clk 0:02:33.3]} 10... h6 {[%clk 0:02:48.7]} 11. O-O
{[%clk 0:02:32.8]} 11... Na6 {[%clk 0:02:46.2]} 12. Rb1 {[%clk 0:02:23.8]} 12...
Rb8 {[%clk 0:02:44]} 13. Bf4 {[%clk 0:02:22.2]} 13... Nc7 {[%clk 0:02:38.2]} 14.
Qa4 {[%clk 0:02:15.5]} 14... Qc8 {[%clk 0:02:02.9]} 15. Qa5 {[%clk 0:02:01.6]}
15... b6 {[%clk 0:01:55.5]} 16. Qxa7 {[%clk 0:01:53.5]} 16... Rb7 {[%clk
0:01:55.2]} 17. Qa4 {[%clk 0:01:52.6]} 17... c5 {[%clk 0:01:51.3]} 18. Qc2
{[%clk 0:01:42.6]} 18... cxd4 {[%clk 0:01:48.5]} 19. cxd4 {[%clk 0:01:39.7]}
19... Na6 {[%clk 0:01:38.5]} 20. c5 {[%clk 0:01:33.1]} 20... b5 {[%clk
0:01:36.3]} 21. Bd6 {[%clk 0:01:24.8]} 21... Re8 {[%clk 0:01:33.6]} 22. Ne5
{[%clk 0:01:19.7]} 22... Bc6 {[%clk 0:01:25.4]} 23. a4 {[%clk 0:01:13.3]} 23...
Bd5 {[%clk 0:00:48.5]} 24. axb5 {[%clk 0:01:08.8]} 24... Nc7 {[%clk 0:00:47.1]}
25. b6 {[%clk 0:01:03.5]} 25... Na8 {[%clk 0:00:41.9]} 26. Rfc1 {[%clk
0:00:50.9]} 26... Qd8 {[%clk 0:00:31.1]} 27. Ra1 {[%clk 0:00:38.1]} 27... Nd7
{[%clk 0:00:21.3]} 28. Rxa8 {[%clk 0:00:33]} 28... Qxa8 {[%clk 0:00:18.5]} 29.
Nxd7 {[%clk 0:00:32.8]} 29... Qa3 {[%clk 0:00:15.8]} 30. Ne5 {[%clk 0:00:29.2]}
30... Bb3 {[%clk 0:00:14.6]} 31. Qc3 {[%clk 0:00:28.3]} 31... Qa2 {[%clk
0:00:12.4]} 32. Ra1 {[%clk 0:00:26.8]} 32... Ra8 {[%clk 0:00:03.6]} 33. Rxa2
{[%clk 0:00:26.1]} 33... Bxa2 {[%clk 0:00:03.5]} 34. h4 {[%clk 0:00:26.1]} 34...
Bd5 {[%clk 0:00:01.7]} 35. c6 {[%clk 0:00:24.6]} 1-0

[Event "*** Titled Tuesday Blitz"]
[Site "Chess.com"]
[Date "2021.04.20"]
[Round "2"]
[White "FMalexhdez"]
[Black "Tactictic"]
[Result "0-1"]
[WhiteElo "2209"]
[BlackElo "2439"]
[TimeControl "180+1"]
[EndTime "10:17:29 PDT"]
[Termination "Tactictic won by resignation"]

1. e4 {[%clk 0:03:00.9]} 1... c5 {[%clk 0:02:59.3]} 2. Nf3 {[%clk 0:03:01.1]}
2... d6 {[%clk 0:02:59.2]} 3. d4 {[%clk 0:03:01.8]} 3... cxd4 {[%clk 0:03:00.1]}
4. Nxd4 {[%clk 0:03:01.5]} 4... Nf6 {[%clk 0:02:59.4]} 5. Nc3 {[%clk 0:03:02.1]}
5... a6 {[%clk 0:02:59.1]} 6. h3 {[%clk 0:03:01.5]} 6... e5 {[%clk 0:02:58.6]}
7. Nde2 {[%clk 0:03:00.8]} 7... h5 {[%clk 0:02:59.2]} 8. g3 {[%clk 0:02:54.6]}
8... Be6 {[%clk 0:02:51.4]} 9. Bg5 {[%clk 0:02:54.6]} 9... Nbd7 {[%clk
0:02:49.4]} 10. Bg2 {[%clk 0:02:52.6]} 10... g6 {[%clk 0:02:44.7]} 11. Nd5
{[%clk 0:02:51.9]} 11... Bxd5 {[%clk 0:02:35.7]} 12. exd5 {[%clk 0:02:48.4]}
12... Bg7 {[%clk 0:02:33.9]} 13. O-O {[%clk 0:02:43.5]} 13... O-O {[%clk
0:02:32.6]} 14. c4 {[%clk 0:02:38.9]} 14... Rc8 {[%clk 0:02:26.3]} 15. b3 {[%clk
0:02:32.7]} 15... Re8 {[%clk 0:01:57]} 16. Nc3 {[%clk 0:02:11.9]} 16... Qc7
{[%clk 0:01:53.9]} 17. Rc1 {[%clk 0:02:06]} 17... b6 {[%clk 0:01:48.3]} 18. Re1
{[%clk 0:02:02]} 18... Nh7 {[%clk 0:01:39.5]} 19. Be3 {[%clk 0:01:47.2]} 19...
f5 {[%clk 0:01:32]} 20. f4 {[%clk 0:01:38.6]} 20... exf4 {[%clk 0:01:21.5]} 21.
Bxf4 {[%clk 0:01:38.3]} 21... Ne5 {[%clk 0:01:13.5]} 22. Kh2 {[%clk 0:01:32.8]}
22... Qf7 {[%clk 0:00:59.9]} 23. Ne2 {[%clk 0:01:24.3]} 23... g5 {[%clk
0:00:58.3]} 24. Bxe5 {[%clk 0:01:12.9]} 24... Bxe5 {[%clk 0:00:59.2]} 25. Kg1
{[%clk 0:00:53.6]} 25... f4 {[%clk 0:00:40.1]} 26. Nd4 {[%clk 0:00:42.2]} 26...
fxg3 {[%clk 0:00:35.3]} 27. Rf1 {[%clk 0:00:41.9]} 27... Qg6 {[%clk 0:00:25.3]}
28. Ne6 {[%clk 0:00:40.7]} 28... Nf8 {[%clk 0:00:22.9]} 29. Bf3 {[%clk
0:00:22.4]} 29... Nxe6 {[%clk 0:00:16.6]} 30. Bxh5 {[%clk 0:00:14.2]} 30... Bd4+
{[%clk 0:00:15.2]} 31. Kh1 {[%clk 0:00:10]} 31... Qe4+ {[%clk 0:00:15.5]} 32.
Bf3 {[%clk 0:00:08.8]} 32... Qh4 {[%clk 0:00:15.6]} 33. Bg4 {[%clk 0:00:03.5]}
33... Ng7 {[%clk 0:00:14.9]} 34. Qxd4 {[%clk 0:00:02.9]} 34... Re2 {[%clk
0:00:10.3]} 35. Qf6 {[%clk 0:00:02.3]} 35... g2+ {[%clk 0:00:09.1]} 36. Kg1
{[%clk 0:00:01.9]} 36... gxf1=Q+ {[%clk 0:00:08.5]} 37. Rxf1 {[%clk 0:00:01.6]}
37... Qg3+ {[%clk 0:00:08.5]} 0-1

[Event "*** Titled Tuesday Blitz"]
[Site "Chess.com"]
[Date "2021.04.20"]
[Round "2"]
[White "starplatinum2030"]
[Black "TST2014"]
[Result "0-1"]
[WhiteElo "2249"]
[BlackElo "2641"]
[TimeControl "180+1"]
[EndTime "10:17:30 PDT"]
[Termination "TST2014 won by resignation"]

1. e4 {[%clk 0:03:00.9]} 1... c5 {[%clk 0:02:57.7]} 2. Nf3 {[%clk 0:03:00]} 2...
Nc6 {[%clk 0:02:56.1]} 3. d4 {[%clk 0:02:55.9]} 3... cxd4 {[%clk 0:02:55.5]} 4.
Nxd4 {[%clk 0:02:56.8]} 4... Nf6 {[%clk 0:02:55.5]} 5. Nc3 {[%clk 0:02:56.9]}
5... d6 {[%clk 0:02:55.1]} 6. Bg5 {[%clk 0:02:55.9]} 6... e6 {[%clk 0:02:55.1]}
7. Qd2 {[%clk 0:02:52.5]} 7... a6 {[%clk 0:02:54.8]} 8. f3 {[%clk 0:02:43.6]}
8... Bd7 {[%clk 0:02:53.7]} 9. O-O-O {[%clk 0:02:35]} 9... b5 {[%clk 0:02:50.9]}
10. Nxc6 {[%clk 0:02:21.4]} 10... Bxc6 {[%clk 0:02:50.1]} 11. Kb1 {[%clk
0:02:15.3]} 11... Be7 {[%clk 0:02:45.7]} 12. h4 {[%clk 0:02:06.4]} 12... h6
{[%clk 0:02:32.1]} 13. Be3 {[%clk 0:02:02.7]} 13... Nd7 {[%clk 0:02:16.9]} 14.
g4 {[%clk 0:01:53.4]} 14... b4 {[%clk 0:02:15.5]} 15. Ne2 {[%clk 0:01:18]} 15...
d5 {[%clk 0:02:14.9]} 16. Nd4 {[%clk 0:01:10.9]} 16... Bb7 {[%clk 0:02:07.4]}
17. exd5 {[%clk 0:01:06.3]} 17... Bxd5 {[%clk 0:02:06.8]} 18. Be2 {[%clk
0:01:01.6]} 18... Ne5 {[%clk 0:01:54.6]} 19. h5 {[%clk 0:00:33.3]} 19... Qa5
{[%clk 0:01:41.9]} 20. Nb3 {[%clk 0:00:30.4]} 20... Qc7 {[%clk 0:01:37.1]} 21.
Bf4 {[%clk 0:00:28.7]} 21... Bd6 {[%clk 0:01:34.3]} 22. Rhf1 {[%clk 0:00:20]}
22... Nc4 {[%clk 0:01:30.6]} 23. Bxc4 {[%clk 0:00:13.4]} 23... Bxf4 {[%clk
0:01:30.1]} 24. Bxd5 {[%clk 0:00:13.6]} 24... Bxd2 {[%clk 0:01:26]} 25. Bxa8
{[%clk 0:00:13.9]} 25... O-O {[%clk 0:01:21.1]} 26. Rxd2 {[%clk 0:00:13.3]}
26... Rxa8 {[%clk 0:01:20.2]} 27. Rfd1 {[%clk 0:00:13.5]} 27... a5 {[%clk
0:01:19.4]} 28. Rd7 {[%clk 0:00:12.9]} 28... Qb6 {[%clk 0:01:17.9]} 29. R7d3
{[%clk 0:00:12.7]} 29... a4 {[%clk 0:01:17.6]} 30. Nd4 {[%clk 0:00:12.8]} 30...
Rc8 {[%clk 0:01:14.5]} 31. Ne2 {[%clk 0:00:12.7]} 31... Qc6 {[%clk 0:01:11.1]}
32. R1d2 {[%clk 0:00:12.1]} 32... Qc5 {[%clk 0:01:07.8]} 33. Nd4 {[%clk
0:00:11.8]} 33... a3 {[%clk 0:01:03.7]} 34. b3 {[%clk 0:00:11.5]} 34... Qe5
{[%clk 0:01:02]} 35. Re2 {[%clk 0:00:10.3]} 35... Qf6 {[%clk 0:00:55.8]} 36.
Red2 {[%clk 0:00:09.5]} 36... Rc3 {[%clk 0:00:55]} 37. Rxc3 {[%clk 0:00:09.3]}
37... bxc3 {[%clk 0:00:55.6]} 38. Rd3 {[%clk 0:00:09.9]} 38... Qe5 {[%clk
0:00:54.6]} 39. Rd1 {[%clk 0:00:09.3]} 39... Qe3 {[%clk 0:00:53.9]} 40. Nb5
{[%clk 0:00:07.1]} 40... Qe2 {[%clk 0:00:52.8]} 41. Rd8+ {[%clk 0:00:06.9]}
41... Kh7 {[%clk 0:00:52.7]} 42. Nxc3 {[%clk 0:00:07.3]} 42... Qxf3 {[%clk
0:00:50.9]} 43. Rd3 {[%clk 0:00:07.2]} 43... Qxg4 {[%clk 0:00:49.6]} 44. b4
{[%clk 0:00:07.4]} 44... Qxb4+ {[%clk 0:00:48.3]} 45. Kc1 {[%clk 0:00:07.9]}
45... e5 {[%clk 0:00:41.8]} 46. Ne2 {[%clk 0:00:07.2]} 46... Qe1+ {[%clk
0:00:40.9]} 0-1